Cogmind - Beta 14 @@@ ROGUE MODE // 2024.10.11 @ 13:28:29 Player: Mutetourette Result: Self-destructed Performance ------------- Evolutions (1) 500 Regions Visited (2) 400 Robots Destroyed (8) 40 Value Destroyed (150) 150 Prototype IDs (1) 20 Alien Tech Used (0) 0 Bonus (0) 0 TOTAL SCORE: 1110 Bonus ------- None Cogmind --------- Core Integrity 318/400 Matter 261/300 Energy 280/280 System Corruption 0% Temperature Warm (117) Movement Walking (120) Location -9/Materials Parts ------- > --- POWER (1) -------- Cooled Ion Engine > --- PROPULSION (3) --- Aluminum Leg Aluminum Leg > --- UTILITY (3) ------ Small Storage Unit Improved Terrain Scanner > --- WEAPON (2) ------- Light Cannon > --- INVENTORY (8) ---- Cooled Ion Engine Light Treads Light Treads Large Matter Pod (95) Sensor Array Small Laser Grenade Launcher Mining Laser Peak State ------------ > --- POWER ------------ Cooled Ion Engine > --- PROPULSION ------- Aluminum Leg Aluminum Leg > --- UTILITY ---------- Small Storage Unit Improved Terrain Scanner > --- WEAPON ----------- EM Pulse Gun Light Cannon > --- INVENTORY -------- Cooled Ion Engine Light Treads Light Treads Large Matter Pod Sensor Array Small Laser Grenade Launcher Mining Laser [Rating: 12] Favorites ----------- Power Light Ion Engine Engine Light Ion Engine Propulsion Aluminum Leg Leg Aluminum Leg Utility Small Storage Unit Device Improved Terrain Scanner Storage Small Storage Unit Weapon Light Cannon Energy Gun EM Pulse Gun Ballistic Cannon Light Cannon Special Weapon Mining Laser Build | -11 -10 -9 ------- Run | Yrd Mat Mat Slots Evolved 2 | . . 2 Power . | . . . Propulsion 1 | . . 1 Utility 1 | . . 1 Weapon . | . . . Parts Attached 13 | 7 4 2 Power 2 | 1 . 1 Engine 2 | 1 . 1 Core . | . . . Reactor . | . . . Propulsion 3 | 2 1 . Treads . | . . . Leg 3 | 2 1 . Wheel . | . . . Hover . | . . . Flight . | . . . Utility 2 | 2 . . Device 1 | 1 . . Storage 1 | 1 . . Processor . | . . . Hackware . | . . . Protection . | . . . Artifact . | . . . Weapon 6 | 2 3 1 Energy Gun 4 | 2 1 1 Energy Cannon . | . . . Ballistic Gun . | . . . Ballistic Cannon 1 | . 1 . Launcher . | . . . Special Weapon 1 | . 1 . Impact Weapon . | . . . Slashing Weapon . | . . . Piercing Weapon . | . . . Special Melee Weapon . | . . . Unidentified Prototypes 1 | . . 1 Parts Lost 1 | . . 1 Power . | . . . Propulsion . | . . . Utility . | . . . Weapon 1 | . . 1 Highest Loss Streak 1 | . . 1 To Critical Strikes . | . . . Average Slot Usage (%) 89 | . 100 77 Engine 12 | . 14 11 Leg 25 | . 28 22 Device 12 | . 14 11 Storage 12 | . 14 11 Energy Gun 12 | . 16 8 Ballistic Cannon 10 | . 10 11 Special Weapon 1 | . 1 2 Peak Build Rating 12 | 9 9 12 Average Rating 8 | 4 9 10 On Entrance 6 | . 9 9 Naked Turns . | . . . Heaviest Build 19 | 11 14 19 Greatest Support 20 | 20 20 20 Greatest Overweight (x) 2 | 2 . . Average Overweight (x) . | . . . Largest Inventory Capacity 8 | 8 8 8 Average Capacity 7 | 7 8 8 Most Carried 8 | 8 8 8 Average Carried 7 | 4 7 8 Final Capacity 8 | 8 8 8 Final Carried 8 | 6 8 8 Class Distribution -------------------- 100% | Mutant Dominant Class ---------------- Mutant | -10/Materials Mutant | -9/Materials Resources | -11 -10 -9 ----------- Run | Yrd Mat Mat Matter Collected 477 | 269 41 167 Remotely . | . . . Salvage Created 329 | 67 34 228 Parts 13 | 3 2 8 Haulers Intercepted 1 | . . 1 Recyclers Shooed 1 | . . 1 Parts Field Recycled . | . . . Retrieved Matter . | . . . Parts Self-Destructed . | . . . Prevented . | . . . Kills | -11 -10 -9 ------- Run | Yrd Mat Mat Combat Hostiles Destroyed 3 | . 1 2 Cannons 3 | . 1 2 Classes Destroyed 6 | 2 1 3 Tunneler 1 | 1 . . Hauler 1 | . . 1 Recycler 2 | 1 . 1 Watcher 1 | . . 1 Grunt 2 | . 1 1 Sentry 1 | . . 1 Best Kill Streak 3 | 2 1 3 Combat Bots Only 1 | . 1 1 Max Kills in Single Turn 1 | 1 1 1 Gunslinging . | . . . Exploded . | . . . Melee . | . . . Uniques/NPCs Destroyed . | . . . Combat | -11 -10 -9 -------- Run | Yrd Mat Mat Hostile Shots Fired 29 | . 3 26 Missed 6 | . 1 5 Damage Taken 310 | . 20 290 Core 82 | . . 82 Absorbed by Shields . | . . . Core Remaining (%) 100 | 100 100 . Volleys Fired 29 | 3 5 21 Largest 2 | 2 2 2 Hottest 100 | 80 100 75 Shots Fired 56 | 6 8 42 Gun 30 | 6 3 21 Cannon 24 | . 3 21 Launcher . | . . . Special 2 | . 2 . Kinetic 24 | . 3 21 Thermal 8 | 6 2 . Explosive . | . . . Electromagnetic 24 | . 3 21 Robot Hit Streak 7 | 2 4 7 Robot Miss Streak 2 | 2 1 2 Penetration Max . | . . . Secondary Targets . | . . . Shots Hit Robots 36 | 3 4 29 Core Hits 13 | 3 1 9 Critical Kills . | . . . Critical Parts Destroyed . | . . . Critical Strikes . | . . . Melee Attacks . | . . . Impact . | . . . Slashing . | . . . Piercing . | . . . Sneak Attacks . | . . . Combat Hostiles . | . . . Follow-up Attacks . | . . . Damage Inflicted 539 | 35 66 438 Guns 246 | 35 13 198 Cannons 293 | . 53 240 Explosions . | . . . Melee . | . . . Ramming . | . . . Kinetic 293 | . 53 240 Thermal 35 | 35 . . Explosive . | . . . Electromagnetic 211 | . 13 198 Impact . | . . . Slashing . | . . . Piercing . | . . . Highest Corruption . | . . . Average Corruption . | . . . Corruption Purged . | . . . Corruption Blocked . | . . . Overload Shots . | . . . Overflow Damage . | . . . Projectiles . | . . . Explosions . | . . . Melee . | . . . Knockbacks . | . . . Impact . | . . . Kinetic . | . . . Secondary . | . . . Self-Inflicted Damage . | . . . Shots . | . . . Rammed . | . . . Targets Rammed . | . . . Kicked . | . . . Crushed . | . . . Highest Temperature 117 | 36 57 117 Average Temperature 30 | 18 26 34 Received Heat Transfer 159 | . 12 147 Siege Activations . | . . . Robots Corrupted . | . . . Combat Hostiles . | . . . Parts Fried . | . . . Impact Corruptions . | . . . Robots Melted . | . . . Combat Hostiles . | . . . Parts Melted . | . . . Heat Transferred 75 | 75 . . Parts Sabotaged . | . . . Parts Stolen . | . . . Parts Stripped . | . . . Power Chain Reactions . | . . . Alert | -11 -10 -9 ------- Run | Yrd Mat Mat Peak Influence 126 | 10 36 126 Initial 14 | . 6 14 Average 26 | 3 18 49 Maximum Alert Level . | . . . Low Security (%) 100 | 100 100 100 Level 1 . | . . . Level 2 . | . . . Level 3 . | . . . Level 4 . | . . . Level 5 . | . . . High Security . | . . . Max Security . | . . . Squads Dispatched 1 | . . 1 Investigation . | . . . Extermination . | . . . Reinforcement 1 | . . 1 Assault . | . . . Garrison . | . . . Intercept . | . . . Searches Triggered . | . . . Construction Impeded . | . . . Haulers Reinforced . | . . . Active Scanning Responses . | . . . Cargo Convoy Interrupts . | . . . Stealth | -11 -10 -9 --------- Run | Yrd Mat Mat Distress Signals 1 | . . 1 Communications Jammed . | . . . Distress Signals . | . . . Times Spotted 6 | . 1 5 Peak Tracking Total 4 | . 1 4 Tactical Retreats . | . . . Traps | -11 -10 -9 ------- Run | Yrd Mat Mat Traps Triggered . | . . . Indirectly . | . . . Trap Hack Attempts . | . . . Triggered . | . . . Disarmed . | . . . Reprogrammed . | . . . Reused . | . . . Traps Extracted . | . . . Installed . | . . . Triggered . | . . . Machines | -11 -10 -9 ---------- Run | Yrd Mat Mat Machines Disabled . | . . . Max in Single Turn . | . . . Machines Repaired . | . . . Machines Dismantled . | . . . Machines Sabotaged . | . . . Overloaded Fab Kills . | . . . Hacking | -11 -10 -9 --------- Run | Yrd Mat Mat Machines Accessed 6 | . 4 2 Terminals 5 | . 3 2 Fabricators . | . . . Repair Stations . | . . . Recycling Units 1 | . 1 . Scanalyzers . | . . . Garrison Access . | . . . Total Hacks 16 | . 9 7 Successful 7 | . 5 2 Failed 9 | . 4 5 Catastrophic 1 | . 1 . Database Lockouts . | . . . Manual 11 | . 4 7 Terminals 14 | . 7 7 Fabricators . | . . . Repair Stations . | . . . Recycling Units 2 | . 2 . Scanalyzers . | . . . Garrison Access . | . . . Terminal Hacks 1 | . 1 . Locate Traps 1 | . 1 . Fabricator Hacks . | . . . Repair Station Hacks . | . . . Recycling Unit Hacks 1 | . 1 . Retrieve Matter 1 | . 1 . Scanalyzer . | . . . Garrison Access Hacks . | . . . Unauthorized Hacks 5 | . 3 2 Terminals 5 | . 3 2 Assimilate 1 | . . 1 Botnet 4 | . 3 1 Fabricators . | . . . Repair Stations . | . . . Recycling Units . | . . . Scanalyzers . | . . . Garrison Access . | . . . Data Cores Recovered . | . . . Used . | . . . Hacking Detections 5 | . 3 2 Full Trace Events 3 | . 2 1 Feedback Events . | . . . Feedback Blocked . | . . . Robot Schematics Acquired . | . . . Robots Built . | . . . Authchips . | . . . Time . | . . . Total Robot Build Rating . | . . . Part Schematics Acquired . | . . . Parts Built . | . . . Authchips . | . . . Time . | . . . Total Part Build Rating . | . . . Parts Repaired . | . . . Time . | . . . Parts Recycled . | . . . Recycled Matter . | . . . Retrieved Matter . | . . . Retrieved Components . | . . . Parts Scanalyzed . | . . . Part Schematics Acquired . | . . . Parts Damaged . | . . . Bothacking | -11 -10 -9 ------------ Run | Yrd Mat Mat Used RIF Installer . | . . . Robots Hacked . | . . . Non-combat . | . . . Combat . | . . . Robot Hacks Applied . | . . . Relay Couplers Released . | . . . Fabnet Peak Effective % . | . . . Robots Rewired . | . . . Allies Hacked . | . . . Hacks Repelled . | . . . Allies | -11 -10 -9 -------- Run | Yrd Mat Mat Total Allies . | . . . Largest Group . | . . . Highest-Rated Group . | . . . Highest-Rated Ally . | . . . Total Orders . | . . . Ally Attacks . | . . . Total Damage . | . . . Kills . | . . . Allies Corrupted . | . . . Allies Melted . | . . . Intel | -11 -10 -9 ------- Run | Yrd Mat Mat Robot Analysis Total . | . . . Derelict Logs Recovered . | . . . Drone Launches . | . . . Drone Recoveries . | . . . Exploration | -11 -10 -9 ------------- Run | Yrd Mat Mat Turns Passed 504 | 113 213 178 Spaces Moved 297 | 63 146 88 Core 29 | 29 . . Treads . | . . . Legs 268 | 34 146 88 Wheels . | . . . Hover . | . . . Flight . | . . . Fastest Speed 50 | 50 120 120 Average Speed 121 | 129 120 120 Slowest Speed 150 | 150 120 120 Overloaded Moves . | . . . Propulsion Burnouts . | . . . Robots Hopped . | . . . Cave-ins Triggered . | . . . Exploration Rate (%) 13 | 5 23 13 Regions Visited 2 Branch Regions . Pre-discovered Areas . | . . . Known Exits Taken . | . . . Unknown Exits Taken 2 | 1 1 . Scrap Searched . | . . . Spaces Dug 2 | . 2 . Terrain Destroyed 2 | . 2 . Melee . | . . . Projectile 2 | . 2 . AOE . | . . . Terrain Rammed . | . . . Walls Destroyed . | . . . Machines Disabled . | . . . Actions | -11 -10 -9 --------- Run | Yrd Mat Mat Total 379 | 88 172 119 Wait 16 | 3 9 4 Move 295 | 62 145 88 Hop . | . . . Pick Up 20 | 13 5 2 Fast Attach . | . . . Attach 7 | 7 . . Detach . | . . . Swap 6 | . 4 2 Drop 6 | . 4 2 Fire 29 | 3 5 21 Melee . | . . . Ram . | . . . Kick . | . . . Crush . | . . . Escape Stasis . | . . . Rewire . | . . . Trap . | . . . Miscellaneous . | . . . Route ------- -11/Scrapyard -10/Materials -9/Materials History --------- Turn | Location | Event 2 | -11/Scrapyard | Met Revision 17 25 | -11/Scrapyard | Discovered new exit (range 16) 114 | -11/Scrapyard | Entered Materials 261 | -10/Materials | Discovered new exit (range 16) 323 | -10/Materials | Build established: Mutant 327 | -10/Materials | Entered another Materials area 327 | -9/Materials | Evolved 2 slots: Propulsion x1, Utility x1 505 | -9/Materials | Self-destructed Last Messages --------------- Terminal linked with 0 systems. Awaiting botnet instructions. 00465_ O-16 Technician: "IFF HANDSHAKE FAILED. SECURING TERMINAL." 00467_ K-01 Serf cleans the Terminal. 00471_ Connecting with Terminal... >>Trojan(Assimilate) Trojan loaded successfully. Testing... System interface override in place. 00472_ K-01 Serf collects debris. 00478_ Y-45 Defender destroyed. 00484_ Destroyed Hover Unit. 00484_ W-16 Scout destroyed. 00485_ ALERT: Hostiles spotted, dispatching reinforcements to Terminal M008. 00501_ Critical hit (Burn: +37). 00504_ EM Pulse Gun destroyed. 00504_ Critical hit (Burn: +37). [Achievement: Just Browsing] Map ----- +----------------------------------------------------+ | | | | | | | | | | | | | | | | | | | | | | | | | #####################????????#???????????????????? | | # # ??? ?? ?? ????????????????? | | # # """ ""??????????????????? | | # = # """"" """"?????????????????? | | # ** # """"" """"?????????????????? | | # """!*!""" # """"" """"" ##?#???????????? | | # """"" """"" # """ """ ##??#?????????? | | + """""*""""" # #??#???????????? | | # """"" """"" # #??????????????? | | # """[ *""" # #??????????????? | | #########"#############Y#########????????????????? | | ??????# *%#??????#???????????????? | | ? ? ??# % % ##? ???????????????????? | | ??????# """ """ """ @"#? ???????????????????? | | ??????+ """ """ Y" T#?????????????????????? | | ??????# """ """ """ "#?????????????????????? | | ??????# ## ????????????????????? | | ??????# #??????"???????????????? | | ???? ?+ """ """ """ #??????????????????????? | | ??????# """ """ """ #??????????????????????? | | #?????# """ """ """ #??????????????????????? | | ??????# ?? #??????? ??????????????? | | ??????# ??? !#??????????????????????? | | ??#??##+??+########## [%##?????????????????????? | | ????????????????????# %#????????# ????????????? | | ?????????????????#??# ?????????#?????????????? | | ????????????????????# ???????????????????????? | | ????????????????????? ???????????????????????? | | ???????????????????????u ???????????????????????? | | ?????????????????????????????????????????????????? | | ?????????????????????????????????????????????????? | | ?????????????????????????????????????????????????? | | ?????????????????????????????????????????????????? | | ?????????????????????????????????????????????????? | | ?????????????????????????????????????????????????? | | ?????????????????????????????????????????????????? | | ?????????????????????????????????????????????????? | | ?????????????????????????????????????????????????? | +----------------------------------------------------+ Best States ------------- Heat Dissipation 28 Energy Generation 14 Energy Capacity 280 Matter Stores 300 Matter Capacity 300 Sight Range 16 Terrain Scan Range 16 Terrain Scan Density 10 Evasion (%) 55 Item Schematics ----------------- None Robot Schematics ------------------ None Fabricated ------------ Nothing Alien Tech Used ----------------- None Achievements -------------- Just Browsing Challenges ------------ None Game ------ Seed PortableImprinterTerminator Manual? 0 Play Time 00:08:06 Cumulative 19.7 hours Start 2024.10.11 @ 13:18:58 End 2024.10.11 @ 13:28:29 Sessions 1 Manual Loads 0 Difficulty Rogue Special Mode None Game No. 44 Rogue 44 Adventurer 0 Explorer 0 Win Type - Total 0 Types 0/0/0/0/0/0/0/0/0 Lore% 13 Gallery% 25 Achievement% 22 Wizard Run 0 Options --------- Layout 1 ASCII 0 Keyboard 0 Movement Mouse Keybinds 0 Fullscreen 1 Font 24/Smallcaps Map View 50x35 Zoom Use 0% Tactical HUD 1 Map Filters NONE Filters NONE Steam 1 RUN: 14734f18-f245-4ced-8992-e5fe323aac0b